bitfinex-derivatives/quotes_BTCF0:USTF0_20210706
["timestamp","ask_amount","ask_price","bid_price","bid_amount"]
[1625546644842,4.06971746,34592.0,34591.0,3.6793608]
[1625546644843,1.89892369,34592.0,34591.0,3.6793608]
[1625546644943,0.95750167,34597.0,34591.0,3.6793608]
[1625546645047,1.69795208,34601.0,34596.0,0.22563255]
[1625546645153,1.19705208,34601.0,34596.0,0.65113301]
[1625546645254,0.0899,34605.0,34596.0,0.65113301]
[1625546645256,0.0899,34605.0,34599.0,0.24057544]
[1625546645344,0.003,34605.0,34601.0,0.059]
[1625546645457,2.37689522,34613.0,34605.0,0.059]
[1625546645551,2.37689522,34613.0,34609.0,0.2312]
[1625546645651,2.37689522,34613.0,34609.0,1.82244345]
[1625546645770,2.37689522,34613.0,34610.0,0.0107055]
[1625546645772,1.32150114,34612.0,34610.0,0.0107055]
[1625546645852,0.54704636,34613.0,34610.0,0.5107055]
[1625546645944,0.20468408,34623.0,34610.0,0.51412883]
[1625546646046,0.97363203,34630.0,34613.0,0.059]
[1625546646142,0.97363203,34630.0,34623.0,0.059]
[1625546646345,0.97363203,34630.0,34629.0,0.44569722]
[1625546646545,0.9203,34658.0,34630.0,0.059]
[1625546646743,2.00852101,34636.0,34630.0,0.27982]
[1625546646846,1.70656719,34643.0,34636.0,0.059]
[1625546646942,0.20476759,34648.0,34636.0,0.059]
[1625546647042,0.20476759,34648.0,34647.0,1.05734742]
[1625546647143,2.35202277,34655.0,34647.0,1.36667742]
[1625546647243,0.9487,34684.0,34653.0,4.3969]
[1625546647343,0.9487,34684.0,34664.0,0.44569722]
[1625546647454,3.0438138,34665.0,34664.0,0.76692722]
[1625546647552,3.0041138,34665.0,34664.0,0.82592722]
[1625546647647,2.8142138,34665.0,34664.0,0.83632417]
[1625546647747,1.8723138,34665.0,34664.0,0.92162417]
[1625546647848,1.2301138,34665.0,34664.0,0.92162417]
[1625546647945,0.7059138,34665.0,34664.0,1.34876917]
[1625546648046,1.68139311,34669.0,34664.0,1.34876917]
[1625546648147,0.29959311,34669.0,34664.0,1.34876917]
[1625546648248,3.46927242,34672.0,34664.0,1.34876917]
[1625546648350,0.9487,34684.0,34678.0,0.3419927]
[1625546648448,0.9487,34684.0,34668.0,0.3518]
[1625546648547,0.9487,34684.0,34678.0,0.40779]
[1625546648748,0.24057544,34693.0,34678.0,0.40779]
[1625546648851,0.953,34713.0,34683.0,0.3518]
[1625546648951,0.0866,34749.0,34692.0,4.6833]
[1625546649050,0.059,34700.0,34692.0,4.93701]
[1625546649150,0.24057544,34712.0,34699.0,0.96230176]
[1625546649349,0.24057544,34712.0,34699.0,1.25994176]
[1625546649447,0.29957544,34712.0,34699.0,1.31894176]
[1625546649903,0.24057544,34712.0,34699.0,1.07836632]
[1625546649998,0.24057544,34712.0,34699.0,0.35664]
[1625546650100,0.29957544,34712.0,34699.0,0.29764]
[1625546650498,0.29957544,34712.0,34680.0,1.47341301]
[1625546650600,0.1,34700.0,34680.0,1.47341301]
[1625546650701,0.1,34700.0,34696.0,1.63936339]
[1625546650800,0.159,34700.0,34696.0,1.63936339]
[1625546651002,0.159,34700.0,34691.0,1.60529946]
[1625546651101,0.159,34700.0,34684.0,2.29510875]
[1625546651201,0.059,34691.0,34684.0,2.29510875]
[1625546651502,0.059,34691.0,34689.0,1.47592686]
[1625546652003,0.96230176,34692.0,34689.0,1.47592686]
[1625546652103,0.1,34690.0,34689.0,1.47592686]
[1625546652408,0.1,34690.0,34689.0,1.53492686]
[1625546652506,0.72172632,34692.0,34689.0,0.059]
[1625546652607,0.72172632,34692.0,34688.0,0.21188]
[1625546652711,0.72172632,34692.0,34688.0,0.27088]
[1625546652812,0.72172632,34692.0,34691.0,1.46711578]
[1625546652910,4.8891,34714.0,34691.0,1.46711578]
[1625546653010,5.0071,34714.0,34691.0,1.46711578]
[1625546653210,0.24057544,34702.0,34701.0,0.24057544]
[1625546653312,0.29957544,34702.0,34701.0,0.24057544]
[1625546653410,0.1,34692.0,34691.0,1.46711578]
[1625546653510,0.1,34692.0,34687.0,1.62939461]
[1625546653610,0.159,34692.0,34687.0,1.62939461]
[1625546653809,0.49308,34692.0,34687.0,1.62939461]
[1625546653910,0.49308,34692.0,34682.0,1.95527353]
[1625546654011,0.49308,34692.0,34666.0,1.46970725]
[1625546654012,0.39308,34692.0,34666.0,1.46970725]
[1625546654111,0.057,34691.0,34666.0,1.46970725]
[1625546654316,0.116,34691.0,34666.0,1.52870725]
[1625546654413,0.116,34691.0,34666.0,0.059]
[1625546654612,0.116,34691.0,34661.0,1.47290717]
[1625546654714,0.116,34691.0,34661.0,0.059]
[1625546654913,0.1,34667.0,34661.0,0.059]
[1625546655217,0.1,34667.0,34666.0,0.96230176]
[1625546655315,0.24057544,34678.0,34666.0,0.96230176]
[1625546655419,0.0856,34717.0,34666.0,0.96230176]
[1625546655421,0.0856,34717.0,34666.0,1.24055176]
[1625546655529,1.4802,47172.0,34676.0,0.3518]
[1625546655530,0.9909,34713.0,34676.0,0.3518]
[1625546655616,0.9909,34713.0,34683.0,0.67132977]
[1625546655719,0.9909,34713.0,34693.0,0.3518]
[1625546655720,1.0499,34713.0,34693.0,0.3518]
[1625546655820,0.059,34713.0,34693.0,0.3518]
[1625546655914,0.059,34713.0,34693.0,0.7159]
[1625546656115,0.059,34713.0,34694.0,0.00187]
[1625546656216,1.48959338,34739.0,34694.0,0.06087]
[1625546656316,0.001,34697.0,34694.0,0.06087]
[1625546656418,0.12805162,34737.0,34694.0,0.06087]
[1625546656516,0.059,34713.0,34711.0,3.7838]
[1625546656617,0.12805162,34737.0,34711.0,4.1589]
[1625546656818,0.18705162,34737.0,34711.0,4.1589]
[1625546656916,0.18705162,34737.0,34712.0,0.433372]
[1625546657116,0.18705162,34737.0,34712.0,0.492372]
[1625546657216,0.24057544,34726.0,34724.0,0.24057544]
[1625546657417,0.29957544,34726.0,34724.0,0.24057544]
[1625546657516,0.29957544,34726.0,34717.0,0.24057544]
[1625546657621,0.29957544,34726.0,34717.0,0.29957544]
[1625546657819,0.29957544,34726.0,34717.0,0.24057544]
[1625546657920,0.29957544,34726.0,34717.0,0.29957544]
[1625546657921,0.059,34726.0,34717.0,0.29957544]
[1625546658018,0.059,34726.0,34717.0,0.24057544]
[1625546658120,0.05837455,34726.0,34717.0,0.24057544]
[1625546659223,0.05837455,34726.0,34725.0,0.24057544]
[1625546661229,0.78010087,34726.0,34717.0,0.24057544]
[1625546661326,1.05203087,34726.0,34717.0,0.24057544]
[1625546661427,1.05203087,34726.0,34707.0,0.24057544]
[1625546661727,1.11103087,34726.0,34707.0,0.24057544]
[1625546661926,1.05203087,34726.0,34707.0,0.24057544]
[1625546662027,1.11103087,34726.0,34707.0,0.24057544]
[1625546662127,1.05203087,34726.0,34707.0,0.24057544]
[1625546662226,1.05203087,34726.0,34685.0,0.9907]
[1625546662227,0.001,34698.0,34685.0,0.7917]
[1625546662327,0.34673,34698.0,34685.0,0.7917]
[1625546662429,0.40573,34698.0,34685.0,0.7917]
[1625546662729,0.40573,34698.0,34674.0,1.27955257]
[1625546662829,0.40573,34698.0,34685.0,0.059]
[1625546663128,0.002,34703.0,34685.0,0.059]
[1625546663229,0.9725,34724.0,34702.0,0.96230176]
[1625546663342,1.0315,34724.0,34702.0,0.96230176]
[1625546663430,1.0315,34724.0,34702.0,1.33000176]
[1625546663630,0.9725,34724.0,34702.0,1.43000176]
[1625546663730,1.0315,34724.0,34702.0,1.43000176]
[1625546663832,1.0905,34724.0,34702.0,1.43000176]
[1625546664030,1.0905,34724.0,34702.0,1.33000176]
[1625546664631,1.0315,34724.0,34702.0,1.33000176]
[1625546664731,0.9725,34724.0,34702.0,1.33000176]
[1625546664831,1.0315,34724.0,34702.0,1.33000176]
[1625546665234,0.24057544,34716.0,34715.0,0.24057544]
[1625546665332,0.29957544,34716.0,34715.0,0.24057544]
[1625546665832,0.29957544,34716.0,34689.0,0.001]
[1625546666288,0.1,34690.0,34689.0,0.001]
[1625546666384,0.32101,34690.0,34689.0,0.001]
[1625546666584,0.32101,34690.0,34689.0,0.06]
[1625546666685,0.22101,34690.0,34689.0,0.06]
[1625546666935,4.0567,34707.0,34689.0,0.06]
[1625546667036,4.1747,34707.0,34689.0,0.001]
[1625546667236,0.24057544,34698.0,34697.0,0.24057544]
[1625546667338,0.52708544,34698.0,34697.0,0.24057544]
[1625546668042,0.46808544,34698.0,34697.0,0.24057544]
[1625546668138,0.52708544,34698.0,34697.0,0.24057544]
[1625546668991,0.24057544,34698.0,34697.0,0.24057544]
[1625546669089,0.34057544,34698.0,34697.0,0.24057544]
[1625546669442,0.39957544,34698.0,34697.0,0.24057544]
[1625546669541,0.34057544,34698.0,34697.0,0.24057544]
[1625546670444,0.1,34698.0,34697.0,0.24057544]
[1625546670847,0.1,34698.0,34697.0,0.29957544]
[1625546671147,0.1,34698.0,34697.0,0.35857544]
[1625546671249,0.1,34698.0,34697.0,0.54015088]
[1625546671449,0.1,34698.0,34697.0,0.59915088]
[1625546672000,0.1,34698.0,34697.0,0.54015088]
[1625546672302,0.159,34698.0,34697.0,0.48115088]
[1625546672599,0.159,34698.0,34693.0,0.24057544]
[1625546673050,0.059,34698.0,34693.0,0.24057544]
[1625546673250,0.48115088,34694.0,34693.0,0.24057544]
[1625546673351,0.88018088,34694.0,34693.0,0.24057544]
[1625546673653,0.98018088,34694.0,34693.0,0.24057544]
[1625546674005,0.44003,34694.0,34693.0,0.29957544]
[1625546674311,0.24057544,34698.0,34697.0,0.41457006]
[1625546674506,0.24057544,34698.0,34697.0,0.47357006]
[1625546674507,0.29957544,34698.0,34697.0,0.47357006]
[1625546674612,0.24057544,34705.0,34697.0,0.47357006]
[1625546674722,0.2228,34732.0,34697.0,0.47357006]
[1625546674723,0.2228,34732.0,34697.0,0.56037006]
[1625546674724,0.001,34732.0,34697.0,0.56037006]
[1625546674806,0.001,34732.0,34710.0,0.27284]
[1625546674905,0.001,34732.0,34710.0,0.33184]
[1625546675007,0.001,34732.0,34710.0,0.39084]
[1625546675214,0.001,34732.0,34711.0,0.428853]
[1625546675307,0.001,34732.0,34731.0,0.96210176]
[1625546675506,0.001,34732.0,34731.0,1.20579176]
[1625546675609,0.001,34732.0,34731.0,1.26479176]
[1625546675906,0.24057544,34751.0,34731.0,1.26479176]
[1625546676006,0.29957544,34751.0,34731.0,1.26479176]
[1625546676457,0.29957544,34751.0,34731.0,1.02110176]
[1625546676558,0.35857544,34751.0,34731.0,1.02110176]
[1625546676659,0.35857544,34751.0,34731.0,0.78052632]
[1625546676758,0.35857544,34751.0,34731.0,0.24037544]
[1625546676858,0.35857544,34751.0,34716.0,0.94240005]
[1625546676963,0.41757544,34751.0,34716.0,1.00140005]
[1625546677061,0.35857544,34751.0,34712.0,0.94227784]
[1625546677259,0.7929,34750.0,34712.0,0.94227784]
[1625546677360,0.28153,34714.0,34713.0,0.24057544]
[1625546677663,0.34053,34714.0,34713.0,0.24057544]
[1625546677763,0.28153,34714.0,34713.0,0.24057544]
[1625546677863,0.34053,34714.0,34713.0,0.24057544]
[1625546677965,0.28153,34714.0,34713.0,0.24057544]
[1625546678063,0.28153,34714.0,34713.0,0.29957544]
[1625546678263,1.9764,34748.0,34713.0,0.29957544]
[1625546678363,2.0944,34748.0,34713.0,0.64973544]
[1625546679313,0.24057544,34732.0,34727.0,0.24057544]
[1625546679413,0.29957544,34732.0,34727.0,0.24057544]
[1625546679514,0.35857544,34732.0,34727.0,0.24057544]
[1625546679614,0.29957544,34732.0,34727.0,0.29957544]
[1625546679915,0.24057544,34732.0,34727.0,0.29957544]
[1625546680016,0.29957544,34732.0,34727.0,0.29957544]
[1625546680316,0.24057544,34732.0,34727.0,0.24057544]
[1625546680517,0.29957544,34732.0,34727.0,0.24057544]
[1625546680617,0.29957544,34732.0,34727.0,0.29957544]
[1625546680866,0.29957544,34732.0,34727.0,0.24057544]
[1625546680967,0.118,34732.0,34727.0,0.24057544]
[1625546681218,0.059,34732.0,34727.0,0.29957544]
[1625546681318,0.29957544,34732.0,34731.0,0.24057544]
[1625546681418,0.29957544,34732.0,34731.0,0.48647544]
[1625546682119,0.059,34732.0,34731.0,0.48647544]
[1625546682820,0.118,34732.0,34720.0,0.24057544]
[1625546682920,0.32955,34732.0,34708.0,0.07848302]
[1625546683120,0.32955,34732.0,34708.0,0.13748302]
[1625546683220,0.32955,34732.0,34708.0,0.059]
[1625546683320,0.48115088,34709.0,34708.0,0.118]
[1625546683521,0.78985088,34709.0,34708.0,0.118]
[1625546683721,0.54927544,34709.0,34708.0,0.118]
[1625546683822,0.21155,34732.0,34720.0,0.30487681]
[1625546683922,0.27055,34732.0,34720.0,0.30487681]
[1625546684024,0.32955,34732.0,34720.0,0.30487681]
[1625546685328,0.24057544,34726.0,34724.0,0.24057544]
[1625546685531,0.35857544,34726.0,34724.0,0.24057544]
[1625546686379,0.29957544,34726.0,34724.0,0.24057544]
[1625546686980,0.24057544,34729.0,34724.0,0.24057544]
[1625546686981,0.45212544,34732.0,34724.0,0.24057544]
[1625546687081,0.059,34726.0,34724.0,0.24057544]
[1625546687181,0.1,34725.0,34724.0,0.24057544]
[1625546687282,0.159,34725.0,34724.0,0.24057544]
[1625546687382,0.159,34725.0,34724.0,0.48115088]
[1625546687783,0.45088,34725.0,34724.0,0.48115088]
[1625546690837,0.39188,34725.0,34724.0,0.48115088]
[1625546690937,0.45088,34725.0,34724.0,0.48115088]
[1625546692190,0.10921971,34725.0,34724.0,0.48115088]
[1625546692291,0.059,34725.0,34724.0,0.48115088]
[1625546692692,0.059,34725.0,34720.0,0.11307681]
[1625546692795,0.059,34725.0,34707.0,0.07899082]
[1625546692892,0.118,34725.0,34711.0,0.064]
[1625546693395,0.96230176,34712.0,34711.0,0.064]
[1625546693496,1.35228176,34712.0,34711.0,0.064]
[1625546693699,0.66878866,34712.0,34711.0,0.064]
[1625546693897,0.66878866,34712.0,34711.0,0.005]
[1625546694101,0.21155,34732.0,34711.0,0.005]
[1625546694199,0.21155,34732.0,34711.0,0.064]
[1625546694300,0.0859,34739.0,34711.0,0.38862]
[1625546694408,1.0305,34745.0,34711.0,0.38862]
[1625546694409,0.059,34732.0,34711.0,0.38862]
[1625546694506,0.9438,34745.0,34712.0,0.00341606]
[1625546694609,0.2929,34767.0,34712.0,0.00341606]
[1625546694704,0.2929,34767.0,34712.0,0.49714406]
[1625546694800,1.0445,34748.0,34712.0,0.49714406]
[1625546694904,1.0445,34748.0,34715.0,0.39507603]
[1625546695006,1.0445,34748.0,34715.0,0.45407603]
[1625546695310,1.0445,34748.0,34730.0,0.001]
[1625546695407,0.001,34737.0,34730.0,0.001]
[1625546695501,0.001,34737.0,34730.0,0.06]
[1625546696152,0.28013,34737.0,34730.0,0.06]
[1625546696252,4.22573,34737.0,34722.0,0.05320851]
[1625546696353,4.22573,34737.0,34722.0,0.059]
[1625546696451,4.22573,34737.0,34720.0,0.80536926]
[1625546696551,0.33913,34737.0,34720.0,0.80536926]
[1625546696701,0.33913,34737.0,34720.0,0.86436926]
[1625546696803,0.33913,34737.0,34720.0,0.80536926]
[1625546696901,0.33913,34737.0,34720.0,0.059]
[1625546697404,0.57970544,34737.0,34736.0,0.58115088]
[1625546697804,0.57970544,34737.0,34736.0,0.48115088]
[1625546698358,0.57870544,34737.0,34736.0,0.48115088]
[1625546698456,0.63770544,34737.0,34736.0,0.29315088]
[1625546698757,0.73770544,34737.0,34736.0,0.29315088]
[1625546698956,0.75478678,34737.0,34736.0,0.29315088]
[1625546699559,0.69578678,34737.0,34736.0,0.29315088]
[1625546699659,0.41665678,34737.0,34736.0,0.29315088]
[1625546699759,0.39957544,34737.0,34736.0,0.29315088]
[1625546699858,0.34057544,34737.0,34736.0,0.29315088]
[1625546699958,0.34057544,34737.0,34736.0,0.60234088]
[1625546700158,0.34057544,34737.0,34736.0,0.66134088]
[1625546700359,0.059,34737.0,34736.0,0.60234088]
[1625546700658,0.062,34740.0,34736.0,0.60234088]
[1625546700759,0.01707995,34737.0,34736.0,0.60234088]
[1625546700863,0.40782995,34737.0,34736.0,0.29315088]
[1625546700959,0.46682995,34737.0,34728.0,0.24057544]
[1625546701058,0.44975,34737.0,34728.0,0.24057544]
[1625546701361,0.001,34730.0,34728.0,0.24057544]
[1625546701460,0.24057544,34729.0,34728.0,0.24057544]
[1625546701661,0.29957544,34729.0,34728.0,0.24057544]
[1625546701761,0.059,34729.0,34728.0,0.24057544]
[1625546701864,0.059,34729.0,34728.0,0.29957544]
[1625546702063,0.001,34730.0,34724.0,0.48115088]
[1625546702163,0.30552,34729.0,34724.0,0.48115088]
[1625546702261,0.30552,34729.0,34723.0,0.001]
[1625546702462,0.35852,34729.0,34723.0,0.001]
[1625546702662,0.01708354,34728.0,34721.0,0.06157544]
[1625546702762,0.01708354,34728.0,34718.0,1.10928294]
[1625546702863,0.07608354,34728.0,34718.0,1.10928294]
[1625546702962,0.13508354,34728.0,34718.0,1.10928294]
[1625546703115,0.13508354,34728.0,34713.0,0.003]
[1625546703213,0.01708489,34727.0,34713.0,0.003]
[1625546703311,0.07608489,34727.0,34713.0,0.003]
[1625546703414,0.07608489,34727.0,34717.0,0.24057544]
[1625546703415,0.13508489,34727.0,34717.0,0.24057544]
[1625546703512,0.13508489,34727.0,34713.0,0.24357544]
[1625546703513,0.13508489,34727.0,34713.0,0.003]
[1625546703514,0.1,34714.0,34713.0,0.003]
[1625546703611,0.159,34714.0,34713.0,0.003]
[1625546703712,0.218,34714.0,34713.0,0.003]
[1625546703965,0.23508775,34714.0,34713.0,0.003]
[1625546704364,0.23508775,34714.0,34712.0,0.003]
[1625546704467,0.23508775,34714.0,34701.0,1.12919469]
[1625546704664,0.23508775,34714.0,34701.0,1.48472264]
[1625546704814,0.01708812,34713.0,34701.0,1.48472264]
[1625546704913,0.13508812,34713.0,34701.0,1.48472264]
[1625546705116,0.13508812,34713.0,34708.0,0.66038382]
[1625546705414,0.01708989,34712.0,34708.0,0.66038382]
[1625546705515,0.01708989,34712.0,34682.0,2.31134338]
[1625546705516,0.99340632,34709.0,34705.0,0.66109616]
[1625546705618,1.05240632,34709.0,34705.0,0.66109616]
[1625546705716,1.12849651,34709.0,34705.0,0.66109616]
[1625546705819,1.12849651,34709.0,34697.0,1.48746635]
[1625546705919,0.1,34706.0,34697.0,1.48746635]
[1625546706020,0.218,34706.0,34697.0,1.48746635]
[1625546706221,0.218,34706.0,34690.0,0.24057544]
[1625546706223,0.218,34706.0,34695.0,1.48841837]
[1625546706322,0.01709275,34705.0,34695.0,1.48841837]
[1625546706420,0.07609275,34705.0,34695.0,1.48841837]
[1625546706520,0.13509275,34705.0,34695.0,1.48841837]
[1625546706621,0.13509275,34705.0,34690.0,1.89437363]
[1625546706623,0.13509275,34705.0,34690.0,0.24057544]
[1625546706924,0.01709414,34704.0,34690.0,0.24057544]
[1625546707022,0.13509414,34704.0,34690.0,0.24057544]
[1625546707224,0.13509414,34704.0,34698.0,0.001]
[1625546707424,0.01709378,34703.0,34698.0,0.001]
[1625546707530,0.48115088,34699.0,34698.0,0.001]
[1625546707826,0.54015088,34699.0,34698.0,0.001]
[1625546708025,0.64015088,34699.0,34698.0,0.001]
[1625546708224,0.65724466,34699.0,34698.0,0.001]
[1625546708776,0.71624466,34699.0,34698.0,0.001]
[1625546709327,0.69915088,34699.0,34698.0,0.001]
[1625546711831,0.69915088,34699.0,34690.0,0.48115088]
[1625546711832,0.69915088,34699.0,34690.0,0.29615088]
[1625546712030,0.69915088,34699.0,34688.0,0.003]
[1625546712283,0.59915088,34699.0,34688.0,0.003]
[1625546713185,0.1,34689.0,34688.0,0.003]
[1625546713284,0.37291,34689.0,34688.0,0.003]
[1625546713386,0.49091,34689.0,34688.0,0.003]
[1625546713486,0.49091,34689.0,34675.0,1.65668586]
[1625546713487,0.49091,34689.0,34675.0,1.61827857]
[1625546713584,0.49091,34689.0,34675.0,1.54227857]
[1625546713585,1.21263632,34689.0,34675.0,1.54227857]
[1625546713685,1.21263632,34689.0,34675.0,1.60127857]
[1625546713834,1.21263632,34689.0,34675.0,1.54227857]
[1625546713989,1.21263632,34689.0,34664.0,0.24057544]
[1625546713990,1.21263632,34689.0,34666.0,1.99049311]
[1625546714089,1.21263632,34689.0,34666.0,2.04949311]
[1625546714186,1.11263632,34689.0,34666.0,2.10849311]
[1625546714286,1.11263632,34689.0,34666.0,2.04949311]
[1625546714587,1.11263632,34689.0,34666.0,0.118]
[1625546714841,0.1,34667.0,34666.0,0.118]
[1625546715038,0.33505,34667.0,34666.0,0.118]
[1625546715240,0.23505,34667.0,34666.0,0.118]
[1625546715441,0.99463632,34689.0,34666.0,0.118]
[1625546715539,0.77017088,34667.0,34666.0,0.118]
[1625546715840,0.77017088,34667.0,34666.0,0.059]
[1625546716047,0.77017088,34667.0,34666.0,0.118]
[1625546716242,0.77017088,34667.0,34666.0,0.059]
[1625546716442,0.77017088,34667.0,34666.0,0.118]
[1625546716845,0.77017088,34667.0,34666.0,0.059]
[1625546719094,0.77017088,34667.0,34661.0,0.24057544]
[1625546719196,0.77017088,34667.0,34661.0,0.29957544]
[1625546719395,0.82917088,34667.0,34661.0,0.29957544]
[1625546719545,0.24057544,34662.0,34661.0,0.29957544]
[1625546719995,0.24057544,34662.0,34661.0,1.6194939]
[1625546720195,0.24057544,34662.0,34661.0,1.37891846]
[1625546720401,0.34057544,34662.0,34661.0,1.37891846]
[1625546720845,0.34057544,34662.0,34661.0,1.43791846]
[1625546721947,0.77017088,34667.0,34661.0,1.37891846]
[1625546722348,0.77017088,34667.0,34666.0,1.31741108]
[1625546722555,0.24057544,34669.0,34666.0,1.43541108]
[1625546722901,0.24057544,34669.0,34668.0,2.46279992]
[1625546723099,0.24057544,34669.0,34668.0,2.58079992]
[1625546723403,0.24057544,34669.0,34668.0,2.52179992]
[1625546723502,0.29957544,34669.0,34668.0,2.52179992]
[1625546723602,1.02130176,34669.0,34668.0,2.46279992]
[1625546723901,0.54015088,34669.0,34668.0,2.46279992]
[1625546724804,0.59915088,34669.0,34668.0,2.46279992]
[1625546725003,0.59915088,34669.0,34664.0,1.1527188]
[1625546725103,0.84937088,34669.0,34664.0,1.1527188]
[1625546725555,0.84937088,34669.0,34662.0,1.1534734]
[1625546725656,0.48115088,34663.0,34662.0,1.1534734]
[1625546725756,0.54015088,34663.0,34662.0,1.1534734]
[1625546726303,0.48115088,34663.0,34662.0,1.1534734]
[1625546726658,0.48115088,34663.0,34662.0,3.45647074]
[1625546727204,0.58115088,34663.0,34662.0,3.45647074]
[1625546727504,0.23906605,34663.0,34662.0,3.45647074]
[1625546727605,0.23906605,34663.0,34662.0,3.69704618]
[1625546727805,0.29806605,34663.0,34662.0,3.69704618]
[1625546727905,0.23906605,34663.0,34662.0,3.69704618]
[1625546728357,0.23906605,34663.0,34662.0,2.3810477]
[1625546728808,0.23906605,34663.0,34662.0,3.69555468]
[1625546728907,0.29806605,34663.0,34662.0,3.69555468]
[1625546729161,0.29806605,34663.0,34662.0,2.3810477]
[1625546729509,0.29806605,34663.0,34662.0,1.2275743]
[1625546729758,0.23906605,34663.0,34662.0,1.2275743]
[1625546730461,0.23906605,34663.0,34662.0,2.37890421]
[1625546731262,0.23906605,34663.0,34662.0,1.2275743]
[1625546733168,0.29806605,34663.0,34662.0,1.2275743]
[1625546735069,0.29806605,34663.0,34662.0,1.7197153]
[1625546735820,0.29806605,34663.0,34662.0,0.73271644]
[1625546736520,0.79806605,34663.0,34662.0,0.73271644]
[1625546736620,0.29806605,34663.0,34662.0,0.73271644]
[1625546737223,0.23906605,34663.0,34662.0,0.79171644]
[1625546737323,0.23906605,34663.0,34662.0,2.0488529]
[1625546737526,0.23906605,34663.0,34662.0,2.1078529]
[1625546737626,0.1,34663.0,34662.0,2.1078529]
[1625546737725,0.001,34665.0,34662.0,4.80548776]
[1625546737977,0.24057544,34672.0,34670.0,0.09846965]
[1625546738076,0.24057544,34672.0,34670.0,0.40515965]
[1625546738176,0.24057544,34672.0,34670.0,0.46415965]
[1625546738730,0.24057544,34672.0,34671.0,1.47307895]
[1625546738931,0.24057544,34672.0,34671.0,1.59107895]
[1625546739031,0.24057544,34672.0,34671.0,1.53207895]
[1625546739133,0.24057544,34672.0,34671.0,1.47307895]
[1625546739232,0.29957544,34672.0,34671.0,2.61810928]
[1625546739335,0.24057544,34672.0,34671.0,2.61810928]
[1625546739637,0.24057544,34672.0,34671.0,1.47307895]
[1625546739737,0.24057544,34672.0,34671.0,1.95422983]
[1625546740137,0.29957544,34672.0,34671.0,1.95422983]
[1625546740238,0.29957544,34672.0,34671.0,0.48115088]
[1625546741239,0.24057544,34672.0,34671.0,0.48115088]
[1625546741342,0.29957544,34672.0,34671.0,0.48115088]
[1625546741442,0.059,34672.0,34671.0,0.54015088]
[1625546741542,0.24057544,34679.0,34671.0,0.54015088]
[1625546741543,0.24057544,34679.0,34671.0,0.86598088]
[1625546741742,0.24057544,34679.0,34674.0,0.24057544]
[1625546741845,0.24057544,34679.0,34674.0,1.77159642]
[1625546742444,0.24057544,34679.0,34674.0,1.83059642]
[1625546742545,0.24057544,34679.0,34674.0,1.77159642]
[1625546743495,0.24057544,34679.0,34674.0,1.83059642]
[1625546743595,0.004,34680.0,34674.0,1.83059642]
[1625546743898,0.004,34680.0,34674.0,4.28640247]
[1625546744498,0.004,34680.0,34674.0,4.22740247]
[1625546744599,0.004,34680.0,34674.0,4.28640247]
[1625546744698,0.004,34680.0,34674.0,4.28298251]
[1625546744796,0.004,34680.0,34674.0,4.22398251]
[1625546745246,0.004,34680.0,34674.0,4.28298251]
[1625546745597,0.004,34680.0,34674.0,4.16498251]
[1625546746051,0.004,34680.0,34674.0,2.85704326]
[1625546746252,0.24057544,34684.0,34674.0,2.85704326]
[1625546746350,0.35857544,34684.0,34674.0,2.85704326]
[1625546746600,0.01710123,34683.0,34674.0,2.85704326]
[1625546746701,0.38653123,34683.0,34674.0,2.85704326]
[1625546746800,0.44553123,34683.0,34674.0,2.85704326]
[1625546747103,0.01710267,34682.0,34674.0,2.85704326]
[1625546747204,0.07610267,34682.0,34674.0,2.85704326]
[1625546747303,0.13510267,34682.0,34674.0,0.24057544]
[1625546747653,0.01710304,34681.0,34674.0,0.24057544]
[1625546747753,0.24057544,34675.0,34674.0,0.24057544]
[1625546747853,0.63897544,34675.0,34674.0,0.24057544]
[1625546749204,0.63897544,34675.0,34674.0,0.7328408]
[1625546749707,0.63897544,34675.0,34674.0,0.24057544]
[1625546749807,0.57997544,34675.0,34674.0,0.24057544]
[1625546750610,0.52097544,34675.0,34674.0,0.24057544]
[1625546750911,0.52097544,34675.0,34674.0,0.73324381]
[1625546751460,0.57997544,34675.0,34674.0,0.73324381]
[1625546751613,0.63897544,34675.0,34674.0,0.73324381]
[1625546751762,0.63897544,34675.0,34674.0,0.24057544]
[1625546752114,0.57997544,34675.0,34674.0,0.24057544]
[1625546752914,0.57997544,34675.0,34674.0,0.73377709]
[1625546753215,0.63897544,34675.0,34674.0,0.73377709]
[1625546753315,0.65607892,34675.0,34674.0,0.24057544]
[1625546754872,0.63897544,34675.0,34674.0,0.24057544]
[1625546755072,0.63897544,34675.0,34674.0,0.73435578]
[1625546755472,0.65607848,34675.0,34674.0,0.73435578]
[1625546755723,0.63897544,34675.0,34674.0,0.73435578]
[1625546755973,0.65607862,34675.0,34674.0,0.73435578]
[1625546758033,0.65607862,34675.0,34674.0,0.72695578]
[1625546758232,0.65607862,34675.0,34674.0,0.23317544]
[1625546758482,0.65607862,34675.0,34674.0,0.22987544]
[1625546758582,0.65607862,34675.0,34674.0,0.22567544]
[1625546759685,0.65607862,34675.0,34671.0,0.48215088]
[1625546759785,0.69029139,34675.0,34671.0,0.48215088]
[1625546759885,0.24057544,34672.0,34671.0,0.24157544]
[1625546759991,0.35857544,34672.0,34671.0,0.24157544]
[1625546760288,0.37568199,34672.0,34671.0,0.24157544]
[1625546760644,0.37568199,34672.0,34671.0,0.73711416]
[1625546760750,0.07610655,34672.0,34671.0,0.73711416]
[1625546760839,0.07610655,34672.0,34671.0,0.79611416]
[1625546760840,0.01710655,34672.0,34671.0,0.79611416]
[1625546761040,0.01710655,34672.0,34671.0,0.85511416]
[1625546761240,0.0171025,34677.0,34671.0,0.85511416]
[1625546761340,0.0171025,34677.0,34671.0,6.02651596]
[1625546761642,0.0171025,34677.0,34671.0,5.96751596]
[1625546761842,0.0171025,34677.0,34676.0,0.48115088]
[1625546761939,0.0171025,34677.0,34676.0,5.92721462]
[1625546762041,0.0171025,34677.0,34676.0,5.98621462]
[1625546762240,0.0171025,34677.0,34676.0,4.50092451]
[1625546762440,0.0171025,34677.0,34676.0,4.72707451]
[1625546763593,0.0171025,34677.0,34676.0,4.50092451]
[1625546764395,0.0171025,34677.0,34676.0,5.9866697]
[1625546765848,0.0171025,34677.0,34676.0,5.9276697]
[1625546766098,0.0171025,34677.0,34676.0,5.9866697]